[Event "Titled Tuesday Blitz July 25 Early 2023"]
[White "Skvortsov, Andrei"]
[Black "Galchenko, Matvey"]
[WhiteFideId "24108600"]
[BlackFideId "24175480"]
[WhiteElo "2745"]
[BlackElo "2896"]
[Result "1-0"]
[Round "11"]
[TimeControl "180+2"]
[Date "2023.07.25"]
[WhiteClock "0:00:07"]
[BlackClock "0:00:01"]
[Board "23"]

1. g3 {[%clk 0:03:00]}  c5 {[%clk 0:02:59]} 2. e4 {[%clk 0:03:00]}  g6 {[%clk 0:02:59]} 3. Ne2 {[%clk 0:02:58]}  Bg7 {[%clk 0:02:59]} 4. d4 {[%clk 0:02:59]}  cxd4 {[%clk 0:02:59]} 5. Nxd4 {[%clk 0:03:00]}  Nc6 {[%clk 0:02:59]} 6. Ne2 {[%clk 0:03:01]}  h5 {[%clk 0:02:56]} 7. h3 {[%clk 0:03:00]}  Nf6 {[%clk 0:02:27]} 8. Bg2 {[%clk 0:02:58]}  d6 {[%clk 0:02:27]} 9. O-O {[%clk 0:02:57]}  Bd7 {[%clk 0:02:13]} 10. Nbc3 {[%clk 0:02:52]}  Qc8 {[%clk 0:02:14]} 11. Kh2 {[%clk 0:02:52]}  Ne5 {[%clk 0:01:43]} 12. f4 {[%clk 0:02:31]}  Neg4+ {[%clk 0:01:43]} 13. Kh1 {[%clk 0:02:20]}  h4 {[%clk 0:01:41]} 14. f5 {[%clk 0:02:14]}  Qc5 {[%clk 0:01:22]} 15. Qe1 {[%clk 0:02:02]}  gxf5 {[%clk 0:01:12]} 16. gxh4 {[%clk 0:01:53]}  Ne3 {[%clk 0:01:01]} 17. Bxe3 {[%clk 0:01:52]}  Qxe3 {[%clk 0:01:02]} 18. exf5 {[%clk 0:01:37]}  Bc6 {[%clk 0:00:58]} 19. Qg3 {[%clk 0:01:18]}  Qxg3 {[%clk 0:00:51]} 20. Nxg3 {[%clk 0:01:19]}  Rxh4 {[%clk 0:00:49]} 21. Bxc6+ {[%clk 0:01:14]}  bxc6 {[%clk 0:00:50]} 22. Kg2 {[%clk 0:01:14]}  Rb8 {[%clk 0:00:48]} 23. Rab1 {[%clk 0:01:08]}  Kd7 {[%clk 0:00:48]} 24. b3 {[%clk 0:01:00]}  Rbh8 {[%clk 0:00:43]} 25. Rh1 {[%clk 0:00:59]}  Rg8 {[%clk 0:00:44]} 26. Kf3 {[%clk 0:00:56]}  Bh6 {[%clk 0:00:38]} 27. Nge2 {[%clk 0:00:47]}  Rg5 {[%clk 0:00:30]} 28. Ng3 {[%clk 0:00:43]}  Rg8 {[%clk 0:00:21]} 29. Nce2 {[%clk 0:00:36]}  Kc7 {[%clk 0:00:17]} 30. Rbd1 {[%clk 0:00:36]}  Nd7 {[%clk 0:00:18]} 31. Rd4 {[%clk 0:00:21]}  Ne5+ {[%clk 0:00:16]} 32. Kf2 {[%clk 0:00:21]}  Bg5 {[%clk 0:00:16]} 33. Kf1 {[%clk 0:00:11]}  Nf3 {[%clk 0:00:11]} 34. Rxh4 {[%clk 0:00:11]}  Bxh4 {[%clk 0:00:12]} 35. Kg2 {[%clk 0:00:07]}  Nd2 {[%clk 0:00:03]} 36. Kh2 {[%clk 0:00:06]}  Nf3+ {[%clk 0:00:02]} 37. Kg2 {[%clk 0:00:06]}  Nd2 {[%clk 0:00:03]} 38. Kh2 {[%clk 0:00:07]}  d5 {[%clk 0:00:04]} 39. c3 {[%clk 0:00:06]}  Rg5 {[%clk 0:00:02]} 40. Rd1 {[%clk 0:00:05]}  Nf3+ {[%clk 0:00:02]} 41. Kg2 {[%clk 0:00:06]}  Ne5 {[%clk 0:00:03]} 42. Kh2 {[%clk 0:00:06]}  Rg7 {[%clk 0:00:03]} 43. Nf1 {[%clk 0:00:06]}  Nf3+ {[%clk 0:00:03]} 44. Kh1 {[%clk 0:00:07]}  Bf2 {[%clk 0:00:04]} 45. Nh2 {[%clk 0:00:05]}  Ne5 {[%clk 0:00:04]} 46. Rf1 {[%clk 0:00:05]}  Be3 {[%clk 0:00:05]} 47. Nd4 {[%clk 0:00:05]}  Rh7 {[%clk 0:00:05]} 48. Ndf3 {[%clk 0:00:04]}  f6 {[%clk 0:00:04]} 49. Nxe5 {[%clk 0:00:04]}  fxe5 {[%clk 0:00:04]} 50. Kg2 {[%clk 0:00:05]}  Bf4 {[%clk 0:00:05]} 51. Ng4 {[%clk 0:00:06]}  Kd6 {[%clk 0:00:04]} 52. f6 {[%clk 0:00:06]}  exf6 {[%clk 0:00:05]} 53. Nxf6 {[%clk 0:00:07]}  Rh6 {[%clk 0:00:05]} 54. Ng4 {[%clk 0:00:08]}  Rh4 {[%clk 0:00:05]} 55. Rh1 {[%clk 0:00:07]}  c5 {[%clk 0:00:05]} 56. Kf3 {[%clk 0:00:08]}  Ke6 {[%clk 0:00:05]} 57. Nf2 {[%clk 0:00:07]}  Kf5 {[%clk 0:00:05]} 58. Kg2 {[%clk 0:00:07]}  e4 {[%clk 0:00:05]} 59. Rd1 {[%clk 0:00:07]}  Ke6 {[%clk 0:00:04]} 60. c4 {[%clk 0:00:06]}  Rh5 {[%clk 0:00:01]} 61. cxd5+ {[%clk 0:00:06]}  Rxd5 {[%clk 0:00:02]} 62. Re1 {[%clk 0:00:06]}  Rg5+ {[%clk 0:00:01]} 63. Kf1 {[%clk 0:00:06]}  e3 {[%clk 0:00:02]} 64. Ng4 {[%clk 0:00:06]}  Kd6 {[%clk 0:00:02]} 65. Ke2 {[%clk 0:00:05]}  Rh5 {[%clk 0:00:02]} 66. Rh1 {[%clk 0:00:05]}  Kc6 {[%clk 0:00:03]} 67. Kf3 {[%clk 0:00:05]}  Bh6 {[%clk 0:00:03]} 68. Nxe3 {[%clk 0:00:05]}  Kb5 {[%clk 0:00:04]} 69. Ng4 {[%clk 0:00:04]}  Bg7 {[%clk 0:00:03]} 70. Ke4 {[%clk 0:00:05]}  Kb4 {[%clk 0:00:04]} 71. Rh2 {[%clk 0:00:05]}  a5 {[%clk 0:00:03]} 72. Ne3 {[%clk 0:00:05]}  Rh4+ {[%clk 0:00:04]} 73. Kd3 {[%clk 0:00:04]}  Rd4+ {[%clk 0:00:04]} 74. Ke2 {[%clk 0:00:05]}  Re4 {[%clk 0:00:04]} 75. Kd3 {[%clk 0:00:04]}  Rd4+ {[%clk 0:00:05]} 76. Ke2 {[%clk 0:00:05]}  Be5 {[%clk 0:00:06]} 77. Nc2+ {[%clk 0:00:04]}  Kc3 {[%clk 0:00:05]} 78. Nxd4 {[%clk 0:00:04]}  Bxh2 {[%clk 0:00:05]} 79. Nc6 {[%clk 0:00:05]}  Bc7 {[%clk 0:00:05]} 80. Kd1 {[%clk 0:00:04]}  Kb2 {[%clk 0:00:06]} 81. h4 {[%clk 0:00:05]}  Kxa2 {[%clk 0:00:06]} 82. Kc2 {[%clk 0:00:05]}  c4 {[%clk 0:00:01]} 83. bxc4 {[%clk 0:00:05]}  a4 {[%clk 0:00:01]} 84. h5 {[%clk 0:00:06]}  Bd6 {[%clk 0:00:02]} 85. h6 {[%clk 0:00:06]}  Bf8 {[%clk 0:00:03]} 86. h7 {[%clk 0:00:06]}  Bg7 {[%clk 0:00:04]} 87. Nb4+ {[%clk 0:00:07]}  Ka1 {[%clk 0:00:04]} 88. Nd3 {[%clk 0:00:07]}  a3 {[%clk 0:00:04]} 89. Nc1 {[%clk 0:00:06]}  Bb2 {[%clk 0:00:03]} 90. c5 {[%clk 0:00:06]}  Be5 {[%clk 0:00:03]} 91. c6 {[%clk 0:00:06]}  Bh8 {[%clk 0:00:01]} 92. c7 {[%clk 0:00:06]}  Bb2 {[%clk 0:00:02]} 93. Nb3+ {[%clk 0:00:06]}  Ka2 {[%clk 0:00:01]} 94. c8=Q {[%clk 0:00:07]} 1-0


[Site "https://www.chess.com"]

[Event "Titled Tuesday Blitz July 25 Early 2023"]
[White "Harsha Bharathakoti"]
[Black "Djordjevic, Vuk"]
[WhiteFideId "5078776"]
[BlackFideId "902098"]
[WhiteElo "2871"]
[BlackElo "2740"]
[Result "1-0"]
[Round "11"]
[TimeControl "180+2"]
[Date "2023.07.25"]
[WhiteClock "0:00:42"]
[BlackClock "0:00:00"]
[Board "24"]

1. e4 {[%clk 0:03:00]}  e6 {[%clk 0:03:00]} 2. d4 {[%clk 0:02:57]}  d5 {[%clk 0:03:01]} 3. Nc3 {[%clk 0:02:55]}  Bb4 {[%clk 0:03:01]} 4. e5 {[%clk 0:02:52]}  c5 {[%clk 0:03:01]} 5. a3 {[%clk 0:02:51]}  Bxc3+ {[%clk 0:03:02]} 6. bxc3 {[%clk 0:02:51]}  Ne7 {[%clk 0:03:02]} 7. h4 {[%clk 0:02:47]}  b6 {[%clk 0:03:01]} 8. Bb5+ {[%clk 0:02:41]}  Bd7 {[%clk 0:03:01]} 9. Bd3 {[%clk 0:02:42]}  c4 {[%clk 0:03:00]} 10. Be2 {[%clk 0:02:42]}  Ba4 {[%clk 0:03:00]} 11. h5 {[%clk 0:02:42]}  h6 {[%clk 0:03:00]} 12. Nf3 {[%clk 0:02:31]}  Nbc6 {[%clk 0:02:59]} 13. Nh4 {[%clk 0:02:30]}  Qd7 {[%clk 0:02:59]} 14. g3 {[%clk 0:02:31]}  O-O-O {[%clk 0:02:58]} 15. Bg4 {[%clk 0:02:25]}  Kb8 {[%clk 0:02:41]} 16. O-O {[%clk 0:02:25]}  Qe8 {[%clk 0:02:21]} 17. Ra2 {[%clk 0:02:20]}  Qg8 {[%clk 0:02:17]} 18. Ng2 {[%clk 0:02:12]}  g5 {[%clk 0:02:08]} 19. Ne3 {[%clk 0:02:07]}  Rf8 {[%clk 0:02:05]} 20. Bd2 {[%clk 0:02:07]}  f5 {[%clk 0:02:03]} 21. exf6 {[%clk 0:02:07]}  Rxf6 {[%clk 0:02:04]} 22. Bh3 {[%clk 0:02:01]}  Qe8 {[%clk 0:01:34]} 23. Qe2 {[%clk 0:02:00]}  Nd8 {[%clk 0:01:13]} 24. Ng4 {[%clk 0:01:58]}  Rff8 {[%clk 0:01:10]} 25. Ne5 {[%clk 0:01:48]}  Rf6 {[%clk 0:01:05]} 26. f4 {[%clk 0:01:43]}  gxf4 {[%clk 0:01:02]} 27. Rf2 {[%clk 0:01:40]}  Kb7 {[%clk 0:00:54]} 28. Rxf4 {[%clk 0:01:40]}  Qf8 {[%clk 0:00:36]} 29. Ra1 {[%clk 0:01:36]}  Rxf4 {[%clk 0:00:35]} 30. Bxf4 {[%clk 0:01:37]}  Rg8 {[%clk 0:00:35]} 31. Kh2 {[%clk 0:01:36]}  Qg7 {[%clk 0:00:32]} 32. Qe3 {[%clk 0:01:25]}  Qh7 {[%clk 0:00:25]} 33. Rc1 {[%clk 0:01:21]}  Bxc2 {[%clk 0:00:20]} 34. Bxh6 {[%clk 0:01:21]}  Nf5 {[%clk 0:00:20]} 35. Bxf5 {[%clk 0:01:19]}  Bxf5 {[%clk 0:00:17]} 36. Bg5 {[%clk 0:00:54]}  Qxh5+ {[%clk 0:00:11]} 37. Bh4 {[%clk 0:00:54]}  Nc6 {[%clk 0:00:10]} 38. Rf1 {[%clk 0:00:50]}  Nxe5 {[%clk 0:00:07]} 39. Qxe5 {[%clk 0:00:51]}  Qh6 {[%clk 0:00:08]} 40. Rf4 {[%clk 0:00:51]}  Qf8 {[%clk 0:00:05]} 41. a4 {[%clk 0:00:41]}  Qa3 {[%clk 0:00:05]} 42. Rxf5 {[%clk 0:00:42]}  exf5 {[%clk 0:00:00]} 43. Qxd5+ {[%clk 0:00:42]} 1-0


[Site "https://www.chess.com"]

[Event "Titled Tuesday Blitz July 25 Early 2023"]
[White "Kushagra Mohan"]
[Black "Yaran, Siar"]
[WhiteFideId "25033638"]
[BlackFideId "6323006"]
[WhiteElo "2856"]
[BlackElo "2649"]
[Result "1-0"]
[Round "11"]
[TimeControl "180+2"]
[Date "2023.07.25"]
[WhiteClock "0:01:51"]
[BlackClock "0:00:02"]
[Board "25"]

1. e4 {[%clk 0:03:00]}  e5 {[%clk 0:02:59]} 2. Nf3 {[%clk 0:03:00]}  Nc6 {[%clk 0:03:00]} 3. Bb5 {[%clk 0:03:00]}  a6 {[%clk 0:03:00]} 4. Ba4 {[%clk 0:03:01]}  Nf6 {[%clk 0:03:00]} 5. O-O {[%clk 0:03:01]}  Be7 {[%clk 0:03:00]} 6. Re1 {[%clk 0:03:01]}  b5 {[%clk 0:03:00]} 7. Bb3 {[%clk 0:03:01]}  O-O {[%clk 0:03:01]} 8. a4 {[%clk 0:03:01]}  Bb7 {[%clk 0:02:59]} 9. d3 {[%clk 0:03:01]}  d6 {[%clk 0:02:53]} 10. Bd2 {[%clk 0:03:01]}  h6 {[%clk 0:02:52]} 11. h3 {[%clk 0:02:59]}  Re8 {[%clk 0:02:51]} 12. Nc3 {[%clk 0:02:59]}  b4 {[%clk 0:02:51]} 13. Ne2 {[%clk 0:02:58]}  a5 {[%clk 0:02:40]} 14. Ng3 {[%clk 0:02:57]}  Bf8 {[%clk 0:02:41]} 15. Nf5 {[%clk 0:02:52]}  Qd7 {[%clk 0:02:28]} 16. N3h4 {[%clk 0:02:45]}  Kh7 {[%clk 0:02:28]} 17. Rf1 {[%clk 0:02:29]}  g6 {[%clk 0:02:22]} 18. Ng3 {[%clk 0:02:28]}  Nd4 {[%clk 0:02:19]} 19. Ba2 {[%clk 0:02:28]}  Ne6 {[%clk 0:02:12]} 20. f4 {[%clk 0:02:16]}  exf4 {[%clk 0:01:59]} 21. Bxf4 {[%clk 0:02:16]}  Nxf4 {[%clk 0:01:54]} 22. Rxf4 {[%clk 0:02:17]}  Bg7 {[%clk 0:01:54]} 23. Qf3 {[%clk 0:02:15]}  Re6 {[%clk 0:00:52]} 24. Rf1 {[%clk 0:02:00]}  d5 {[%clk 0:00:48]} 25. exd5 {[%clk 0:01:58]}  Rb6 {[%clk 0:00:15]} 26. Ne4 {[%clk 0:01:50]}  Nxe4 {[%clk 0:00:04]} 27. Rxf7 {[%clk 0:01:51]}  Ng5 {[%clk 0:00:05]} 28. Rxd7 {[%clk 0:01:50]}  Nxf3+ {[%clk 0:00:05]} 29. Rxf3 {[%clk 0:01:51]}  Rd6 {[%clk 0:00:04]} 30. Rxc7 {[%clk 0:01:50]}  Bxd5 {[%clk 0:00:02]} 31. Bxd5 {[%clk 0:01:51]} 1-0


[Site "https://www.chess.com"]

[Event "Titled Tuesday Blitz July 25 Early 2023"]
[White "Zavgorodniy, Sergiy"]
[Black "Ilamparthi A R"]
[WhiteFideId "14110148"]
[BlackFideId "45015775"]
[WhiteElo "2605"]
[BlackElo "2854"]
[Result "0-1"]
[Round "11"]
[TimeControl "180+2"]
[Date "2023.07.25"]
[WhiteClock "0:00:11"]
[BlackClock "0:00:46"]
[Board "26"]

1. e4 {[%clk 0:03:00]}  c5 {[%clk 0:02:59]} 2. Nf3 {[%clk 0:03:00]}  e6 {[%clk 0:03:00]} 3. d3 {[%clk 0:02:59]}  Nc6 {[%clk 0:02:52]} 4. g3 {[%clk 0:02:58]}  g6 {[%clk 0:02:50]} 5. Bg5 {[%clk 0:02:56]}  Be7 {[%clk 0:02:40]} 6. h4 {[%clk 0:02:47]}  h6 {[%clk 0:02:38]} 7. Bxe7 {[%clk 0:02:43]}  Qxe7 {[%clk 0:02:39]} 8. Qd2 {[%clk 0:02:36]}  Qf6 {[%clk 0:02:37]} 9. Bg2 {[%clk 0:02:20]}  Qxb2 {[%clk 0:02:36]} 10. Qc3 {[%clk 0:02:20]}  Qxc3+ {[%clk 0:02:36]} 11. Nxc3 {[%clk 0:02:20]}  b6 {[%clk 0:02:27]} 12. O-O {[%clk 0:02:03]}  Ba6 {[%clk 0:02:26]} 13. a4 {[%clk 0:01:46]}  Ke7 {[%clk 0:02:23]} 14. Nb5 {[%clk 0:01:45]}  Rb8 {[%clk 0:02:01]} 15. c3 {[%clk 0:01:38]}  Nf6 {[%clk 0:01:53]} 16. Nd2 {[%clk 0:01:37]}  Rhc8 {[%clk 0:01:45]} 17. f4 {[%clk 0:01:29]}  d5 {[%clk 0:01:43]} 18. exd5 {[%clk 0:01:19]}  Nxd5 {[%clk 0:01:41]} 19. Bxd5 {[%clk 0:01:16]}  exd5 {[%clk 0:01:42]} 20. Rfe1+ {[%clk 0:01:15]}  Kf8 {[%clk 0:01:41]} 21. Nf3 {[%clk 0:01:10]}  Rd8 {[%clk 0:01:34]} 22. h5 {[%clk 0:01:08]}  gxh5 {[%clk 0:01:32]} 23. Kf2 {[%clk 0:01:08]}  Bb7 {[%clk 0:01:31]} 24. Rh1 {[%clk 0:01:01]}  a6 {[%clk 0:01:31]} 25. Na3 {[%clk 0:01:01]}  d4 {[%clk 0:01:31]} 26. c4 {[%clk 0:00:55]}  Nb4 {[%clk 0:01:30]} 27. Rad1 {[%clk 0:00:53]}  Re8 {[%clk 0:01:27]} 28. Rxh5 {[%clk 0:00:51]}  Kg7 {[%clk 0:01:20]} 29. a5 {[%clk 0:00:49]}  Re3 {[%clk 0:01:17]} 30. Nh4 {[%clk 0:00:37]}  Nxd3+ {[%clk 0:00:50]} 31. Kf1 {[%clk 0:00:37]}  Be4 {[%clk 0:00:50]} 32. Nf5+ {[%clk 0:00:19]}  Bxf5 {[%clk 0:00:50]} 33. Rxf5 {[%clk 0:00:20]}  bxa5 {[%clk 0:00:47]} 34. Nc2 {[%clk 0:00:11]}  Rxg3 {[%clk 0:00:46]} 0-1


[Site "https://www.chess.com"]

[Event "Titled Tuesday Blitz July 25 Early 2023"]
[White "Aravindh, Chithambaram VR."]
[Black "Panesar Vedant"]
[WhiteFideId "5072786"]
[BlackFideId "35033018"]
[WhiteElo "2903"]
[BlackElo "2718"]
[Result "1-0"]
[Round "11"]
[TimeControl "180+2"]
[Date "2023.07.25"]
[WhiteClock "0:00:20"]
[BlackClock "0:00:04"]
[Board "28"]

1. b3 {[%clk 0:02:59]}  e5 {[%clk 0:02:58]} 2. Bb2 {[%clk 0:03:00]}  Nc6 {[%clk 0:02:59]} 3. c4 {[%clk 0:02:59]}  Nf6 {[%clk 0:02:59]} 4. Nf3 {[%clk 0:02:59]}  d6 {[%clk 0:02:54]} 5. e3 {[%clk 0:02:56]}  g6 {[%clk 0:02:54]} 6. d4 {[%clk 0:02:56]}  exd4 {[%clk 0:02:53]} 7. Nxd4 {[%clk 0:02:56]}  Bg7 {[%clk 0:02:53]} 8. Be2 {[%clk 0:02:50]}  O-O {[%clk 0:02:53]} 9. O-O {[%clk 0:02:50]}  Re8 {[%clk 0:02:51]} 10. Nc3 {[%clk 0:02:50]}  Nxd4 {[%clk 0:02:49]} 11. Qxd4 {[%clk 0:02:51]}  Ne4 {[%clk 0:02:47]} 12. Qxg7+ {[%clk 0:02:41]}  Kxg7 {[%clk 0:02:43]} 13. Nxe4+ {[%clk 0:02:42]}  Kh6 {[%clk 0:02:26]} 14. Nf6 {[%clk 0:02:31]}  Re5 {[%clk 0:02:23]} 15. f4 {[%clk 0:02:25]}  Qxf6 {[%clk 0:02:20]} 16. fxe5 {[%clk 0:02:24]}  Qg5 {[%clk 0:02:21]} 17. Rxf7 {[%clk 0:02:19]}  dxe5 {[%clk 0:01:46]} 18. e4 {[%clk 0:02:13]}  Be6 {[%clk 0:01:29]} 19. Bc1 {[%clk 0:02:01]}  Bxf7 {[%clk 0:01:23]} 20. Bxg5+ {[%clk 0:01:57]}  Kxg5 {[%clk 0:01:24]} 21. Rd1 {[%clk 0:01:55]}  Be6 {[%clk 0:01:21]} 22. c5 {[%clk 0:01:54]}  Kf6 {[%clk 0:01:15]} 23. Kf2 {[%clk 0:01:54]}  a5 {[%clk 0:01:06]} 24. Bb5 {[%clk 0:01:42]}  Ke7 {[%clk 0:00:57]} 25. Ke3 {[%clk 0:01:41]}  Rf8 {[%clk 0:00:56]} 26. c6 {[%clk 0:01:32]}  b6 {[%clk 0:00:53]} 27. Bc4 {[%clk 0:01:32]}  Rf7 {[%clk 0:00:46]} 28. Bxe6 {[%clk 0:01:22]}  Kxe6 {[%clk 0:00:45]} 29. a3 {[%clk 0:01:22]}  Kf6 {[%clk 0:00:27]} 30. b4 {[%clk 0:01:19]}  axb4 {[%clk 0:00:24]} 31. axb4 {[%clk 0:01:16]}  Re7 {[%clk 0:00:24]} 32. b5 {[%clk 0:01:14]}  Ke6 {[%clk 0:00:21]} 33. Rd8 {[%clk 0:01:13]}  Rf7 {[%clk 0:00:21]} 34. Rd1 {[%clk 0:01:01]}  Re7 {[%clk 0:00:19]} 35. g3 {[%clk 0:00:53]}  Rf7 {[%clk 0:00:19]} 36. Ke2 {[%clk 0:00:54]}  Re7 {[%clk 0:00:19]} 37. Kf3 {[%clk 0:00:54]}  Rf7+ {[%clk 0:00:19]} 38. Kg4 {[%clk 0:00:54]}  Rf2 {[%clk 0:00:18]} 39. h4 {[%clk 0:00:51]}  Rf7 {[%clk 0:00:13]} 40. Kg5 {[%clk 0:00:50]}  Rf3 {[%clk 0:00:12]} 41. g4 {[%clk 0:00:49]}  Rb3 {[%clk 0:00:13]} 42. Rd7 {[%clk 0:00:47]}  Rxb5 {[%clk 0:00:13]} 43. Rxh7 {[%clk 0:00:36]}  Rb4 {[%clk 0:00:10]} 44. Kxg6 {[%clk 0:00:33]}  Rxe4 {[%clk 0:00:10]} 45. g5 {[%clk 0:00:33]}  Kd5 {[%clk 0:00:09]} 46. h5 {[%clk 0:00:30]}  Kxc6 {[%clk 0:00:08]} 47. h6 {[%clk 0:00:29]}  b5 {[%clk 0:00:04]} 48. Rf7 {[%clk 0:00:20]} 1-0


[Site "https://www.chess.com"]

[Event "Titled Tuesday Blitz July 25 Early 2023"]
[White "Nasuta, Grzegorz"]
[Black "Zhigalko, Sergei"]
[WhiteFideId "1141686"]
[BlackFideId "13502956"]
[WhiteElo "2712"]
[BlackElo "2869"]
[Result "0-1"]
[Round "11"]
[TimeControl "180+2"]
[Date "2023.07.25"]
[WhiteClock "0:00:00"]
[BlackClock "0:00:15"]
[Board "29"]

1. e4 {[%clk 0:03:00]}  c5 {[%clk 0:03:00]} 2. Nf3 {[%clk 0:03:00]}  Nc6 {[%clk 0:03:00]} 3. d4 {[%clk 0:02:57]}  cxd4 {[%clk 0:03:01]} 4. Nxd4 {[%clk 0:02:57]}  Nf6 {[%clk 0:03:02]} 5. Nc3 {[%clk 0:02:56]}  e5 {[%clk 0:03:03]} 6. Ndb5 {[%clk 0:02:56]}  d6 {[%clk 0:03:03]} 7. Nd5 {[%clk 0:02:57]}  Nxd5 {[%clk 0:03:03]} 8. exd5 {[%clk 0:02:58]}  Nb8 {[%clk 0:03:04]} 9. a4 {[%clk 0:02:55]}  Be7 {[%clk 0:03:05]} 10. Bd2 {[%clk 0:02:55]}  O-O {[%clk 0:03:05]} 11. a5 {[%clk 0:02:55]}  Nd7 {[%clk 0:03:05]} 12. Be2 {[%clk 0:02:54]}  f5 {[%clk 0:03:05]} 13. O-O {[%clk 0:02:52]}  f4 {[%clk 0:03:05]} 14. Ra3 {[%clk 0:02:44]}  Nf6 {[%clk 0:02:47]} 15. Re1 {[%clk 0:02:38]}  Bf5 {[%clk 0:02:41]} 16. a6 {[%clk 0:02:29]}  bxa6 {[%clk 0:02:12]} 17. Rxa6 {[%clk 0:02:30]}  Kh8 {[%clk 0:02:04]} 18. c4 {[%clk 0:02:27]}  Ne4 {[%clk 0:01:57]} 19. Ba5 {[%clk 0:02:13]}  Qd7 {[%clk 0:01:12]} 20. b4 {[%clk 0:00:58]}  h6 {[%clk 0:00:50]} 21. Bd3 {[%clk 0:00:42]}  Ng5 {[%clk 0:00:47]} 22. f3 {[%clk 0:00:21]}  e4 {[%clk 0:00:42]} 23. Be2 {[%clk 0:00:02]}  Bh3 {[%clk 0:00:32]} 24. c5 {[%clk 0:00:02]}  Bxg2 {[%clk 0:00:27]} 25. Kxg2 {[%clk 0:00:03]}  exf3+ {[%clk 0:00:27]} 26. Bxf3 {[%clk 0:00:03]}  Qh3+ {[%clk 0:00:28]} 27. Kf2 {[%clk 0:00:03]}  Qxh2+ {[%clk 0:00:27]} 28. Kf1 {[%clk 0:00:04]}  Nh3 {[%clk 0:00:22]} 29. Qd4 {[%clk 0:00:04]}  Bf6 {[%clk 0:00:20]} 30. Re2 {[%clk 0:00:05]}  Qg3 {[%clk 0:00:17]} 31. Rg2 {[%clk 0:00:00]}  Qxf3+ {[%clk 0:00:15]} 0-1


[Site "https://www.chess.com"]

[Event "Titled Tuesday Blitz July 25 Early 2023"]
[White "Oleksiyenko, Mykhaylo"]
[Black "Samunenkov, Ihor"]
[WhiteFideId "4152417"]
[BlackFideId "14187086"]
[WhiteElo "2695"]
[BlackElo "2790"]
[Result "1-0"]
[Round "11"]
[TimeControl "180+2"]
[Date "2023.07.25"]
[WhiteClock "0:00:19"]
[BlackClock "0:00:00"]
[Board "30"]

1. e4 {[%clk 0:03:00]}  c6 {[%clk 0:03:00]} 2. Nf3 {[%clk 0:02:59]}  d5 {[%clk 0:02:59]} 3. Nc3 {[%clk 0:03:00]}  dxe4 {[%clk 0:02:59]} 4. Nxe4 {[%clk 0:03:01]}  Nf6 {[%clk 0:02:59]} 5. Nxf6+ {[%clk 0:03:01]}  exf6 {[%clk 0:03:00]} 6. Bc4 {[%clk 0:03:02]}  Bd6 {[%clk 0:02:59]} 7. Qe2+ {[%clk 0:03:01]}  Qe7 {[%clk 0:02:59]} 8. Qxe7+ {[%clk 0:03:01]}  Kxe7 {[%clk 0:03:00]} 9. O-O {[%clk 0:03:00]}  Rd8 {[%clk 0:02:59]} 10. Re1+ {[%clk 0:02:59]}  Kf8 {[%clk 0:02:59]} 11. a4 {[%clk 0:02:57]}  a5 {[%clk 0:02:52]} 12. d3 {[%clk 0:02:51]}  Na6 {[%clk 0:02:47]} 13. c3 {[%clk 0:02:46]}  Nc7 {[%clk 0:02:40]} 14. Nd2 {[%clk 0:02:43]}  Bf4 {[%clk 0:02:28]} 15. d4 {[%clk 0:02:14]}  Be6 {[%clk 0:02:17]} 16. Bxe6 {[%clk 0:02:13]}  Bxd2 {[%clk 0:02:01]} 17. Bxd2 {[%clk 0:02:14]}  fxe6 {[%clk 0:02:00]} 18. Kf1 {[%clk 0:02:00]}  Kf7 {[%clk 0:01:52]} 19. Be3 {[%clk 0:01:57]}  Nd5 {[%clk 0:01:51]} 20. c4 {[%clk 0:01:54]}  Nxe3+ {[%clk 0:01:45]} 21. fxe3 {[%clk 0:01:55]}  Ra6 {[%clk 0:01:46]} 22. c5 {[%clk 0:01:34]}  e5 {[%clk 0:01:29]} 23. Red1 {[%clk 0:01:10]}  exd4 {[%clk 0:00:59]} 24. Rxd4 {[%clk 0:01:09]}  Rxd4 {[%clk 0:00:50]} 25. exd4 {[%clk 0:01:10]}  Ra8 {[%clk 0:00:50]} 26. Ke2 {[%clk 0:01:03]}  Rd8 {[%clk 0:00:47]} 27. Kd3 {[%clk 0:01:03]}  Rd7 {[%clk 0:00:45]} 28. b4 {[%clk 0:00:57]}  axb4 {[%clk 0:00:44]} 29. Rb1 {[%clk 0:00:57]}  Ke6 {[%clk 0:00:39]} 30. Rxb4 {[%clk 0:00:25]}  Kd5 {[%clk 0:00:38]} 31. a5 {[%clk 0:00:25]}  Re7 {[%clk 0:00:34]} 32. a6 {[%clk 0:00:20]}  bxa6 {[%clk 0:00:34]} 33. Rb8 {[%clk 0:00:20]}  Rd7 {[%clk 0:00:22]} 34. Ra8 {[%clk 0:00:18]}  h5 {[%clk 0:00:12]} 35. h4 {[%clk 0:00:18]}  a5 {[%clk 0:00:04]} 36. Rh8 {[%clk 0:00:16]}  g6 {[%clk 0:00:04]} 37. Rf8 {[%clk 0:00:16]}  Ke6 {[%clk 0:00:02]} 38. Rc8 {[%clk 0:00:16]}  Kd5 {[%clk 0:00:02]} 39. Rf8 {[%clk 0:00:16]}  Rb7 {[%clk 0:00:01]} 40. Rd8+ {[%clk 0:00:15]}  Ke6 {[%clk 0:00:01]} 41. Rd6+ {[%clk 0:00:16]}  Kf5 {[%clk 0:00:01]} 42. Rxc6 {[%clk 0:00:16]}  Rb3+ {[%clk 0:00:01]} 43. Kc4 {[%clk 0:00:17]}  Rb2 {[%clk 0:00:01]} 44. Ra6 {[%clk 0:00:16]}  Rxg2 {[%clk 0:00:02]} 45. c6 {[%clk 0:00:16]}  g5 {[%clk 0:00:02]} 46. Kd5 {[%clk 0:00:17]}  gxh4 {[%clk 0:00:01]} 47. c7 {[%clk 0:00:17]}  Rc2 {[%clk 0:00:01]} 48. Rc6 {[%clk 0:00:18]}  Rxc6 {[%clk 0:00:00]} 49. Kxc6 {[%clk 0:00:19]} 1-0


[Site "https://www.chess.com"]

[Event "Titled Tuesday Blitz July 25 Early 2023"]
[White "Wagner, Dennis"]
[Black "Nagare Kaivalya Sandip"]
[WhiteFideId "24650684"]
[BlackFideId "25957929"]
[WhiteElo "2772"]
[BlackElo "2667"]
[Result "0-1"]
[Round "11"]
[TimeControl "180+2"]
[Date "2023.07.25"]
[WhiteClock "0:00:20"]
[BlackClock "0:00:43"]
[Board "32"]

1. d4 {[%clk 0:03:00]}  Nf6 {[%clk 0:03:00]} 2. Nf3 {[%clk 0:03:01]}  d5 {[%clk 0:02:59]} 3. c4 {[%clk 0:03:01]}  e6 {[%clk 0:03:00]} 4. g3 {[%clk 0:03:02]}  Bb4+ {[%clk 0:02:57]} 5. Bd2 {[%clk 0:03:02]}  Be7 {[%clk 0:02:54]} 6. Bg2 {[%clk 0:03:02]}  O-O {[%clk 0:02:55]} 7. O-O {[%clk 0:03:03]}  c6 {[%clk 0:02:55]} 8. Qc2 {[%clk 0:03:03]}  b6 {[%clk 0:02:56]} 9. Rd1 {[%clk 0:03:04]}  Bb7 {[%clk 0:02:56]} 10. b3 {[%clk 0:03:03]}  Nbd7 {[%clk 0:02:57]} 11. Nc3 {[%clk 0:03:04]}  a5 {[%clk 0:02:55]} 12. e4 {[%clk 0:03:04]}  Rc8 {[%clk 0:02:48]} 13. e5 {[%clk 0:02:59]}  Ne8 {[%clk 0:02:48]} 14. cxd5 {[%clk 0:02:34]}  cxd5 {[%clk 0:02:47]} 15. Bf1 {[%clk 0:02:34]}  Nc7 {[%clk 0:02:41]} 16. Bd3 {[%clk 0:02:33]}  h6 {[%clk 0:02:38]} 17. h4 {[%clk 0:02:26]}  f5 {[%clk 0:02:30]} 18. exf6 {[%clk 0:01:41]}  Rxf6 {[%clk 0:02:29]} 19. Bf4 {[%clk 0:01:34]}  Ne8 {[%clk 0:02:02]} 20. Qb2 {[%clk 0:01:11]}  Bd6 {[%clk 0:01:40]} 21. Ne5 {[%clk 0:00:44]}  Rxf4 {[%clk 0:01:29]} 22. gxf4 {[%clk 0:00:44]}  Qxh4 {[%clk 0:01:29]} 23. Ne2 {[%clk 0:00:39]}  Nxe5 {[%clk 0:01:07]} 24. fxe5 {[%clk 0:00:39]}  Be7 {[%clk 0:01:03]} 25. Rac1 {[%clk 0:00:37]}  Nc7 {[%clk 0:01:02]} 26. Kg2 {[%clk 0:00:22]}  Rf8 {[%clk 0:01:02]} 27. Ng3 {[%clk 0:00:20]}  Na6 {[%clk 0:00:56]} 28. Rh1 {[%clk 0:00:20]}  Qg4 {[%clk 0:00:52]} 29. Qe2 {[%clk 0:00:20]}  Qxd4 {[%clk 0:00:47]} 30. Bxa6 {[%clk 0:00:19]}  Bxa6 {[%clk 0:00:47]} 31. Qxa6 {[%clk 0:00:20]}  Rxf2+ {[%clk 0:00:44]} 32. Kh3 {[%clk 0:00:20]}  Qh4# {[%clk 0:00:43]} 0-1


[Site "https://www.chess.com"]